fUSD/lending_fUSD_20260420
["ID","MTS","AMOUNT","RATE_DAILY","PERIOD"]
[420877811,1776694270815,-500.0,0.000155,2]
[420877812,1776694270824,-500.0,0.000155,2]
[420877813,1776694270833,-500.0,0.000155,2]
[420877814,1776694270842,-500.0,0.000155,2]
[420877815,1776694270852,-500.0,0.000155,2]
[420877816,1776694270861,-500.0,0.000155,2]
[420877817,1776694270870,-500.0,0.000155,2]
[420877818,1776694270881,-500.0,0.000155,2]
[420877819,1776694270890,-500.0,0.000155,2]
[420877820,1776694270900,-500.0,0.000155,2]
[420877821,1776694270910,-500.0,0.000155,2]
[420877822,1776694270920,-500.0,0.000155,2]
[420877823,1776694270929,-500.0,0.000155,2]
[420877824,1776694270938,-500.0,0.000155,2]
[420877825,1776694270947,-500.0,0.000155,2]
[420877826,1776694270957,-500.0,0.000155,2]
[420877827,1776694270966,-500.0,0.000155,2]
[420877828,1776694270976,-500.0,0.000155,2]
[420877829,1776694270985,-500.0,0.000155,2]
[420877830,1776694270995,-500.0,0.000155,2]
[420877831,1776694271004,-500.0,0.000155,2]
[420877832,1776694271013,-500.0,0.000155,2]
[420877833,1776694271023,-500.0,0.000155,2]
[420877834,1776694271033,-500.0,0.000155,2]
[420877835,1776694271042,-500.0,0.000155,2]
[420877836,1776694271053,-500.0,0.000155,2]
[420877837,1776694271063,-500.0,0.000155,2]
[420877838,1776694271072,-500.0,0.000155,2]
[420877839,1776694271083,-314.59,0.000155,2]
[420877840,1776694271092,-500.0,0.000155,2]
[420877841,1776694271102,-500.0,0.000155,2]
[420877842,1776694271111,-500.0,0.000155,2]
[420877843,1776694271121,-500.0,0.000155,2]
[420877844,1776694271132,-500.0,0.000155,2]
[420877845,1776694271141,-500.0,0.000155,2]
[420877846,1776694271151,-500.0,0.000155,2]
[420877847,1776694271160,-500.0,0.000155,2]
[420877848,1776694271171,-500.0,0.000155,2]
[420877849,1776694271180,-500.0,0.000155,2]
[420877850,1776694271189,-500.0,0.000155,2]
[420877851,1776694271199,-500.0,0.000155,2]
[420877852,1776694271208,-500.0,0.000155,2]
[420877853,1776694271218,-500.0,0.000155,2]
[420877854,1776694271228,-500.0,0.000155,2]
[420877855,1776694271237,-500.0,0.000155,2]
[420877856,1776694271246,-500.0,0.000155,2]
[420877857,1776694271256,-500.0,0.000155,2]
[420877858,1776694271266,-500.0,0.000155,2]
[420877859,1776694271275,-500.0,0.000155,2]
[420877860,1776694271285,-500.0,0.000155,2]
[420877861,1776694271294,-500.0,0.000155,2]
[420877862,1776694271304,-500.0,0.000155,2]
[420877863,1776694271313,-500.0,0.000155,2]
[420877864,1776694271323,-500.0,0.000155,2]
[420877865,1776694271332,-500.0,0.000155,2]
[420877866,1776694271342,-500.0,0.000155,2]
[420877867,1776694271352,-500.0,0.000155,2]
[420877868,1776694271363,-500.0,0.000155,2]
[420877869,1776694271373,-500.0,0.000155,2]
[420877870,1776694271383,-500.0,0.000155,2]
[420877871,1776694271400,-500.0,0.000155,2]
[420877872,1776694271411,-500.0,0.000155,2]
[420877873,1776694271421,-500.0,0.000155,2]
[420877874,1776694271432,-500.0,0.000155,2]
[420877875,1776694271442,-500.0,0.000155,2]
[420877876,1776694271452,-500.0,0.000155,2]
[420877877,1776694271463,-500.0,0.000155,2]
[420877878,1776694271473,-500.0,0.000155,2]
[420877879,1776694271483,-500.0,0.000155,2]
[420877880,1776694271493,-500.0,0.000155,2]
[420877881,1776694271503,-500.0,0.000155,2]
[420877882,1776694271514,-500.0,0.000155,2]
[420877883,1776694271524,-500.0,0.000155,2]
[420877884,1776694271535,-500.0,0.000155,2]
[420877885,1776694271544,-500.0,0.000155,2]
[420877886,1776694271554,-500.0,0.000155,2]
[420877887,1776694271564,-336.85,0.000155,2]
[420877888,1776694271574,-500.0,0.000155,2]
[420877889,1776694271584,-500.0,0.000155,2]
[420877890,1776694271595,-500.0,0.000155,2]
[420877891,1776694271605,-500.0,0.000155,2]
[420877892,1776694271616,-500.0,0.000155,2]
[420877893,1776694271626,-500.0,0.000155,2]
[420877894,1776694271637,-500.0,0.000155,2]
[420877895,1776694271647,-500.0,0.000155,2]
[420877896,1776694271657,-500.0,0.000155,2]
[420877897,1776694271667,-500.0,0.000155,2]
[420877898,1776694271677,-500.0,0.000155,2]
[420877899,1776694271688,-500.0,0.000155,2]
[420877900,1776694271697,-500.0,0.000155,2]
[420877901,1776694271708,-500.0,0.000155,2]
[420877902,1776694271718,-500.0,0.000155,2]
[420877903,1776694271728,-500.0,0.000155,2]
[420877904,1776694271737,-500.0,0.000155,2]
[420877905,1776694271747,-500.0,0.000155,2]
[420877906,1776694271757,-500.0,0.000155,2]
[420877907,1776694271767,-500.0,0.000155,2]
[420877908,1776694271778,-500.0,0.000155,2]
[420877909,1776694271787,-500.0,0.000155,2]
[420877910,1776694271798,-500.0,0.000155,2]
[420877911,1776694271808,-500.0,0.000155,2]
[420877912,1776694271818,-500.0,0.000155,2]
[420877913,1776694271827,-500.0,0.000155,2]
[420877914,1776694271838,-500.0,0.000155,2]
[420877915,1776694271848,-500.0,0.000155,2]
[420877916,1776694271858,-500.0,0.000155,2]
[420877917,1776694271868,-165.0,0.000155,2]
[420877918,1776694271879,-500.0,0.000155,2]
[420877919,1776694271889,-500.0,0.000155,2]
[420877920,1776694271899,-500.0,0.000155,2]
[420877921,1776694271910,-500.0,0.000155,2]
[420877922,1776694271920,-500.0,0.000155,2]
[420877923,1776694271930,-500.0,0.000155,2]
[420877924,1776694271940,-500.0,0.000155,2]
[420877925,1776694271949,-500.0,0.000155,2]
[420877926,1776694271959,-500.0,0.000155,2]
[420877927,1776694271968,-500.0,0.000155,2]
[420877928,1776694271979,-500.0,0.000155,2]
[420877929,1776694271989,-500.0,0.000155,2]
[420877930,1776694271998,-322.96,0.000155,2]
[420877931,1776694272013,-500.0,0.000155,2]
[420877932,1776694272023,-500.0,0.000155,2]
[420877933,1776694272033,-500.0,0.000155,2]
[420877934,1776694272044,-241.27,0.000155,2]
[420877935,1776694272054,-4000.0,0.00015507,2]
[420877936,1776694272064,-1591.52925675,0.00015634,2]
[420877937,1776694272075,-3000.0,0.00015678,2]
[420877938,1776694272086,-875.14,0.00015684,2]
[420877939,1776694272096,-3500.46,0.00015684,2]
[420877940,1776694272107,-350.0,0.00015737,2]
[420877941,1776694272116,-152.0,0.00015744,2]
[420877942,1776694272127,-1532.0,0.00015744,2]
[420877943,1776694272138,-152.0,0.00015744,2]
[420877944,1776694272149,-167.0,0.00015744,2]
[420877945,1776694272158,-152.0,0.00015744,2]
[420877946,1776694272169,-167.32496857,0.00015744,2]
[420877947,1776694272179,-167.0,0.00015744,2]
[420877948,1776694272189,-162.39910489,0.00015744,2]
[420877949,1776694272199,-167.0,0.00015744,2]
[420877950,1776694272210,-185.3567589,0.00015744,2]
[420877951,1776694272220,-156.9,0.00015752,2]
[420877952,1776694272231,-2262.88393787,0.00015807,2]
[420877953,1776694272240,-151.0,0.0001583,2]
[420877954,1776694272251,-188.59,0.0001583,2]
[420877955,1776694272261,-151.0,0.00015833,2]
[420877956,1776694272271,-151.0,0.00015833,2]
[420877957,1776694272281,-151.0,0.00015839,2]
[420877958,1776694272291,-350.0,0.00015853,2]
[420877959,1776694272300,-151.0,0.00015863,2]
[420877960,1776694272310,-500.0,0.0001589,2]
[420877961,1776694272320,-500.0,0.0001589,2]
[420877962,1776694272330,-500.0,0.0001589,2]
[420877963,1776694272340,-500.0,0.0001589,2]
[420877964,1776694272350,-500.0,0.0001589,2]
[420877965,1776694272360,-500.0,0.0001589,2]
[420877966,1776694272370,-500.0,0.0001589,2]
[420877967,1776694272379,-500.0,0.0001589,2]
[420877968,1776694272390,-500.0,0.0001589,2]
[420877969,1776694272400,-500.0,0.0001589,2]
[420877970,1776694272411,-500.0,0.0001589,2]
[420877971,1776694272420,-500.0,0.0001589,2]
[420877972,1776694272430,-500.0,0.0001589,2]
[420877973,1776694272440,-500.0,0.0001589,2]
[420877974,1776694272450,-500.0,0.0001589,2]
[420877975,1776694272460,-500.0,0.0001589,2]
[420877976,1776694272470,-500.0,0.0001589,2]
[420877977,1776694272480,-500.0,0.0001589,2]
[420877978,1776694272490,-500.0,0.0001589,2]
[420877979,1776694272499,-500.0,0.0001589,2]
[420877980,1776694272509,-500.0,0.0001589,2]
[420877981,1776694272519,-500.0,0.0001589,2]
[420877982,1776694272528,-500.0,0.0001589,2]
[420877983,1776694272538,-500.0,0.0001589,2]
[420877984,1776694272548,-500.0,0.0001589,2]
[420877985,1776694272557,-500.0,0.0001589,2]
[420877986,1776694272567,-500.0,0.0001589,2]
[420877987,1776694272577,-500.0,0.0001589,2]
[420877988,1776694272587,-500.0,0.0001589,2]
[420877989,1776694272596,-500.0,0.0001589,2]
[420877990,1776694272606,-500.0,0.0001589,2]
[420877991,1776694272616,-500.0,0.0001589,2]
[420877992,1776694272631,-500.0,0.0001589,2]
[420877993,1776694272642,-500.0,0.0001589,2]
[420877994,1776694272652,-635.12624257,0.0001589,2]
[420877995,1776694272662,-2000.0,0.0001589,2]
[420877996,1776694272672,-1700.0,0.0001589,2]
[420877997,1776694272682,-1200.79800378,0.0001589,2]
[420877998,1776694272693,-2500.0,0.0001589,2]
[420877999,1776694272703,-2500.0,0.0001589,2]
[420878000,1776694272713,-2500.0,0.0001589,2]
[420878001,1776694272723,-1827.06162783,0.0001589,2]
[420878002,1776694272733,-2500.0,0.0001589,2]
[420878003,1776694272743,-1781.03109167,0.0001589,2]
[420878004,1776694272754,-689.59648833,0.0001589,2]
[420878005,1776694272764,-2272.17997118,0.0001589,2]
[420878006,1776694272775,-297.85474223,0.0001589,2]
[420878007,1776694272785,-2500.0,0.0001589,2]
[420878008,1776694272795,-1621.12082416,0.0001589,2]
[420878009,1776694272805,-2500.0,0.0001589,2]
[420878010,1776694272815,-2500.0,0.0001589,2]
[420878011,1776694272826,-1617.48130141,0.0001589,2]
[420878012,1776694272836,-2500.0,0.0001589,2]
[420878013,1776694272847,-204.00242524,0.0001589,2]
[420878014,1776694272856,-1755.33262397,0.0001589,2]
[420878015,1776694272866,-2500.0,0.0001589,2]
[420878016,1776694272876,-2500.0,0.0001589,2]
[420878017,1776694272887,-4000.0,0.00015895,2]
[420878018,1776694272898,-2000.0,0.000159,2]
[420878019,1776694272907,-350.0,0.00015911,2]
[420878020,1776694272917,-2334.9,0.00015945,2]
[420878021,1776694272928,-502.0,0.00015963,4]
[420878022,1776694272938,-2920.8923248,0.00015999,2]
[420878023,1776694272948,-49033.34019019,0.00016,2]
[420878024,1776694272959,-280.0,0.00016,2]
[420878025,1776694273296,-150.0,0.00016,2]
[420878026,1776694273306,-3000.0,0.00016,2]
[420878027,1776694273316,-153.78808258,0.00016,2]
[420878028,1776694273326,-160.0,0.00016,3]
[420878029,1776694273335,-1000.0,0.00016,2]
[420878030,1776694273345,-313.0,0.00016,2]
[420878031,1776694273355,-9134.91466746,0.00016,7]
[420878032,1776694273364,-200.0,0.00016,2]
[420878033,1776694273373,-307.0,0.00016,2]
[420878034,1776694273382,-627.09623272,0.00016,2]
[420878035,1776694273394,-3000.0,0.000161,2]
[420878036,1776694273404,-151.0,0.000161,2]
[420878037,1776694273413,-627.09623272,0.000161,2]
[420878038,1776694273423,-2420.30242227,0.0001611,15]
[420878039,1776694273432,-302.31165752,0.00016116,2]
[420878040,1776694273442,-467.20892527,0.00016116,2]
[420878041,1776694273451,-9999.99,0.00016116,2]
[420878042,1776694273461,-150.0,0.00016128,2]
[420878043,1776694273471,-150.0,0.00016128,2]
[420878044,1776694273480,-150.0,0.00016128,2]
[420878045,1776694273490,-150.0,0.00016128,2]
[420878046,1776694273499,-276.0,0.00016128,2]
[420878047,1776694273509,-150.0,0.00016137,2]
[420878048,1776694273518,-1600.0,0.00016164,2]
[420878049,1776694273528,-636.66,0.0001617,2]
[420878050,1776694273538,-636.66,0.0001617,2]
[420878051,1776694273547,-636.66,0.0001617,2]
[420878052,1776694273557,-636.66,0.0001617,2]
[420878053,1776694273566,-636.66,0.0001617,2]
[420878054,1776694273576,-1088.28186128,0.0001617,2]
[420878055,1776694273585,-1017.73007046,0.0001617,2]
[420878056,1776694273595,-1034.77290009,0.0001617,2]
[420878057,1776694273605,-1149.04600828,0.0001617,2]
[420878058,1776694273615,-1008.76835891,0.0001617,2]
[420878059,1776694273624,-1022.69413943,0.0001617,2]
[420878060,1776694273634,-1005.24277771,0.0001617,2]
[420878061,1776694273644,-1074.89185371,0.0001617,2]
[420878062,1776694273653,-1043.85506968,0.0001617,2]
[420878063,1776694273663,-1107.4968351,0.0001617,2]
[420878064,1776694273672,-1110.10213509,0.0001617,2]
[420878065,1776694273683,-1087.06268177,0.0001617,2]
[420878066,1776694273693,-1137.62615263,0.0001617,2]
[420878067,1776694273702,-1111.01237753,0.0001617,2]
[420878068,1776694273712,-1056.11899349,0.0001617,2]
[420878069,1776694273721,-1113.23687143,0.0001617,2]
[420878070,1776694273730,-1012.03521073,0.0001617,2]
[420878071,1776694273740,-1135.78243598,0.0001617,2]
[420878072,1776694273749,-1050.10443008,0.0001617,2]
[420878073,1776694273759,-1142.38157935,0.0001617,2]
[420878074,1776694273769,-1123.52271637,0.0001617,2]
[420878075,1776694273778,-1028.41737782,0.0001617,2]
[420878076,1776694273788,-1006.14180491,0.0001617,2]
[420878077,1776694273797,-1079.09090863,0.0001617,2]
[420878078,1776694273806,-1080.57437517,0.0001617,2]
[420878079,1776694273816,-1132.93644205,0.0001617,2]
[420878080,1776694274040,-1098.75016219,0.0001617,2]
[420878081,1776694274050,-1042.09899472,0.0001617,2]
[420878082,1776694274060,-1041.15149153,0.0001617,2]
[420878083,1776694274070,-1033.98874776,0.0001617,2]
[420878084,1776694274079,-1034.795152,0.0001617,2]
[420878085,1776694274089,-1028.82374906,0.0001617,2]
[420878086,1776694274098,-1011.02111739,0.0001617,2]
[420878087,1776694274107,-1076.69323264,0.0001617,2]
[420878088,1776694274116,-1119.62532862,0.0001617,2]
[420878089,1776694274126,-1009.67128371,0.0001617,2]
[420878090,1776694274136,-1144.67449226,0.0001617,2]
[420878091,1776694274145,-1119.774983,0.0001617,2]
[420878092,1776694274154,-1042.37243278,0.0001617,2]
[420878093,1776694274164,-1081.27633319,0.0001617,2]
[420878094,1776694274174,-1668.90318657,0.0001617,2]
[420878095,1776694274183,-805.82259305,0.00016199,2]
[420878096,1776694274193,-3000.0,0.000162,2]
[420878097,1776694274203,-133546.58,0.000162,2]
[420878098,1776694274212,-627.09623272,0.000162,2]
[420878099,1776694274222,-350.0,0.00016218,2]
[420878100,1776694274231,-312.0,0.00016268,2]
[420878101,1776694274251,-372.0,0.00016268,2]
[420878102,1776694274261,-695.0,0.00016268,2]
[420878103,1776694274271,-150.0,0.00016279,2]
[420878104,1776694274280,-150.0,0.00016279,2]
[420878105,1776694274290,-205.0,0.00016279,2]
[420878106,1776694274300,-150.0,0.0001628,2]
[420878107,1776694274309,-4000.0,0.00016282,2]
[420878108,1776694274319,-461.0,0.0001629,2]
[420878109,1776694274328,-956.0,0.0001629,2]
[420878110,1776694274337,-1895.0,0.0001629,2]
[420878111,1776694274347,-2684.0,0.0001629,2]
[420878112,1776694274355,-518.0,0.0001629,2]
[420878113,1776694274365,-2150.0,0.0001629,2]
[420878114,1776694274374,-723.0,0.0001629,2]
[420878115,1776694274384,-1205.93,0.000163,2]
[420878116,1776694274393,-2000.0,0.000163,2]
[420878117,1776694274403,-400.0,0.00016334,2]
[420878118,1776694274412,-400.0,0.00016334,2]
[420878119,1776694274422,-400.0,0.00016334,2]
[420878120,1776694274431,-400.0,0.00016334,2]
[420878121,1776694274441,-400.0,0.00016334,2]
[420878122,1776694274450,-400.0,0.00016334,2]
[420878123,1776694274459,-400.0,0.00016334,2]
[420878124,1776694274469,-400.0,0.00016334,2]
[420878125,1776694274478,-516.0,0.00016334,2]
[420878126,1776694274488,-200.0,0.0001634,2]
[420878127,1776694274498,-3000.0,0.0001635,2]
[420878128,1776694274508,-7150.22,0.00016355,2]
[420878129,1776694274518,-227.0,0.0001638,2]
[420878130,1776694274528,-3000.0,0.000164,2]
[420878131,1776694274537,-3702.29,0.000164,2]
[420878132,1776694274547,-2000.0,0.000164,2]
[420878133,1776694274556,-2000.0,0.000164,2]
[420878134,1776694274566,-2000.0,0.000164,2]
[420878135,1776694274577,-2000.0,0.000164,2]
[420878136,1776694274586,-2000.0,0.000164,2]
[420878137,1776694274596,-2000.0,0.000164,2]
[420878138,1776694274605,-2000.0,0.000164,2]
[420878139,1776694274615,-200.0,0.000164,2]
[420878140,1776694274624,-2000.0,0.000164,2]
[420878141,1776694274634,-2000.0,0.000164,2]
[420878142,1776694274645,-2000.0,0.000164,2]
[420878143,1776694274654,-2000.0,0.000164,2]
[420878144,1776694274664,-2000.0,0.000164,2]
[420878145,1776694274674,-2000.0,0.000164,2]
[420878146,1776694274683,-2000.0,0.000164,2]
[420878147,1776694274692,-2000.0,0.000164,2]
[420878148,1776694274702,-2000.0,0.000164,2]
[420878149,1776694274712,-185.0,0.000164,3]
[420878150,1776694274722,-352.0,0.000164,3]
[420878151,1776694274731,-200.0,0.000164,2]
[420878152,1776694274741,-1387.66,0.00016438,2]
[420878153,1776694274750,-2312.77,0.00016438,2]
[420878154,1776694274759,-7287.3,0.00016438,2]
[420878155,1776694274769,-2500.0,0.00016438,2]
[420878156,1776694274778,-2500.0,0.00016438,2]
[420878157,1776694274788,-2500.0,0.00016438,2]
[420878158,1776694274798,-2500.0,0.00016438,2]
[420878159,1776694274807,-2500.0,0.00016438,2]
[420878160,1776694274817,-2500.0,0.00016438,2]
[420878161,1776694274827,-2500.0,0.00016438,2]
[420878162,1776694274836,-2500.0,0.00016438,2]
[420878163,1776694274846,-2500.0,0.00016438,2]
[420878164,1776694274856,-2500.0,0.00016438,2]
[420878165,1776694274865,-2500.0,0.00016438,2]
[420878166,1776694274875,-2500.0,0.00016438,2]
[420878167,1776694274885,-2500.0,0.00016438,2]
[420878168,1776694274895,-2500.0,0.00016438,2]
[420878169,1776694274905,-2500.0,0.00016438,2]
[420878170,1776694274914,-2500.0,0.00016438,2]
[420878171,1776694274924,-2500.0,0.00016438,2]
[420878172,1776694274934,-2500.0,0.00016438,2]
[420878173,1776694274943,-321.34085668,0.00016438,2]
[420878174,1776694274952,-900.0,0.00016438,2]
[420878175,1776694274962,-229.36,0.00016438,2]
[420878176,1776694274971,-155.182698,0.00016438,2]
[420878177,1776694274980,-151.0,0.00016438,2]
[420878178,1776694274989,-151.0,0.00016438,2]
[420878179,1776694274999,-151.0,0.00016438,2]
[420878180,1776694275008,-151.0,0.00016438,2]
[420878181,1776694275018,-151.0,0.00016438,2]
[420878182,1776694275027,-151.0,0.00016438,2]
[420878183,1776694275036,-151.0,0.00016438,2]
[420878184,1776694275046,-151.0,0.00016438,2]
[420878185,1776694275056,-151.0,0.00016438,2]
[420878186,1776694275065,-151.0,0.00016438,2]
[420878187,1776694275075,-151.0,0.00016438,2]
[420878188,1776694275084,-151.0,0.00016438,2]
[420878189,1776694275094,-151.0,0.00016438,2]
[420878190,1776694275103,-151.0,0.00016438,2]
[420878191,1776694275112,-151.0,0.00016438,2]
[420878192,1776694275122,-151.0,0.00016438,2]
[420878193,1776694275132,-151.0,0.00016438,2]
[420878194,1776694275142,-151.0,0.00016438,2]
[420878195,1776694275151,-151.0,0.00016438,2]
[420878196,1776694275161,-151.0,0.00016438,2]
[420878197,1776694275170,-151.0,0.00016438,2]
[420878198,1776694275179,-151.0,0.00016438,2]
[420878199,1776694275189,-151.0,0.00016438,2]
[420878200,1776694275198,-151.0,0.00016438,2]
[420878201,1776694275208,-151.0,0.00016438,2]
[420878202,1776694275217,-151.0,0.00016438,2]
[420878203,1776694275227,-151.0,0.00016438,2]
[420878204,1776694275236,-151.0,0.00016438,2]
[420878205,1776694275246,-151.0,0.00016438,2]
[420878206,1776694275256,-151.0,0.00016438,2]
[420878207,1776694275266,-151.0,0.00016438,2]
[420878208,1776694275276,-151.0,0.00016438,2]
[420878209,1776694275285,-151.0,0.00016438,2]
[420878210,1776694275295,-151.0,0.00016438,2]
[420878211,1776694275305,-151.0,0.00016438,2]
[420878212,1776694275315,-151.0,0.00016438,2]
[420878213,1776694275324,-151.0,0.00016438,2]
[420878214,1776694275334,-151.0,0.00016438,2]
[420878215,1776694275344,-151.0,0.00016438,2]
[420878216,1776694275354,-151.0,0.00016438,2]
[420878217,1776694275364,-151.0,0.00016438,2]
[420878218,1776694275373,-273.641047,0.00016438,2]
[420878219,1776694275382,-152.0,0.00016438,2]
[420878220,1776694275393,-152.0,0.00016438,2]
[420878221,1776694275402,-152.0,0.00016438,2]
[420878222,1776694275412,-159.14096852,0.00016438,2]
[420878223,1776694275422,-152.60853183,0.00016438,2]
[420878224,1776694275432,-152.0,0.00016438,2]
[420878225,1776694275442,-152.0,0.00016438,2]
[420878226,1776694275451,-150.0,0.00016438,2]
[420878227,1776694275461,-2240.427984,0.00016438,2]
[420878228,1776694275470,-2240.427984,0.00016438,2]
[420878229,1776694275480,-2240.427984,0.00016438,2]
[420878230,1776694275490,-2240.427984,0.00016438,2]
[420878231,1776694275499,-2240.427984,0.00016438,2]
[420878232,1776694275509,-2240.427984,0.00016438,2]
[420878233,1776694275519,-2240.427984,0.00016438,2]
[420878234,1776694275528,-2240.427984,0.00016438,2]
[420878235,1776694275538,-2240.427984,0.00016438,2]
[420878236,1776694275548,-2240.427984,0.00016438,2]
[420878237,1776694275557,-2240.427984,0.00016438,2]
[420878238,1776694275566,-2240.427984,0.00016438,2]
[420878239,1776694275576,-2240.427984,0.00016438,2]
[420878240,1776694275585,-2240.427984,0.00016438,2]
[420878241,1776694275594,-2240.427984,0.00016438,2]
[420878242,1776694275603,-2240.427984,0.00016438,2]
[420878243,1776694275612,-2240.427984,0.00016438,2]
[420878244,1776694275622,-2240.427984,0.00016438,2]
[420878245,1776694275631,-2240.427984,0.00016438,2]
[420878246,1776694275641,-2240.427986,0.00016438,2]
[420878247,1776694275651,-152.0,0.00016438,2]
[420878248,1776694275661,-152.0,0.00016438,2]
[420878249,1776694275671,-152.0,0.00016438,2]
[420878250,1776694275680,-152.0,0.00016438,2]
[420878251,1776694275690,-152.0,0.00016438,2]
[420878252,1776694275699,-152.0,0.00016438,2]
[420878253,1776694275709,-240.0,0.00016438,2]
[420878254,1776694275718,-152.0,0.00016438,2]
[420878255,1776694275728,-250.778875,0.00016438,2]
[420878256,1776694275737,-250.778875,0.00016438,2]
[420878257,1776694275747,-250.778875,0.00016438,2]
[420878258,1776694275756,-250.778875,0.00016438,2]
[420878259,1776694275765,-250.778875,0.00016438,2]
[420878260,1776694275775,-250.778875,0.00016438,2]
[420878261,1776694275784,-250.778875,0.00016438,2]
[420878262,1776694275794,-250.778875,0.00016438,2]
[420878263,1776694275804,-250.778875,0.00016438,2]
[420878264,1776694275813,-250.778875,0.00016438,2]
[420878265,1776694275823,-250.778875,0.00016438,2]
[420878266,1776694275832,-250.778875,0.00016438,2]
[420878267,1776694275842,-250.778875,0.00016438,2]
[420878268,1776694275851,-250.778875,0.00016438,2]
[420878269,1776694275860,-3000.0,0.00016438,2]
[420878270,1776694275871,-3000.0,0.00016438,2]
[420878271,1776694275880,-1000.0,0.00016438,2]
[420878272,1776694275889,-3000.0,0.00016438,2]
[420878273,1776694275898,-2288.2008942,0.00016438,2]
[420878274,1776694275909,-844.52055568,0.00016438,2]
[420878275,1776694275919,-3000.0,0.00016438,2]
[420878276,1776694275929,-3000.0,0.00016438,2]
[420878277,1776694275938,-3000.0,0.00016438,2]
[420878278,1776694275948,-460.52777439,0.00016438,2]
[420878279,1776694275957,-3000.0,0.0001645,2]
[420878280,1776694275967,-300.0,0.0001647,2]
[420878281,1776694275976,-400.0,0.0001647,2]
[420878282,1776694275985,-400.0,0.0001647,2]
[420878283,1776694275995,-400.0,0.0001647,2]
[420878284,1776694276004,-300.71064335,0.0001647,2]
[420878285,1776694276014,-601.54629789,0.0001647,2]
[420878286,1776694276023,-300.0,0.0001647,2]
[420878287,1776694276032,-400.0,0.0001647,2]
[420878288,1776694276042,-300.0,0.0001647,2]
[420878289,1776694276051,-400.0,0.0001647,2]
[420878290,1776694276061,-45501.54,0.0001649,7]
[420878291,1776694276070,-350.0,0.00016497,3]
[420878292,1776694276079,-190.59,0.000165,7]
[420878293,1776694276088,-11031.73,0.000165,2]
[420878294,1776694276098,-16387.90631186,0.000165,2]
[420878295,1776694276107,-6588.56807607,0.000165,2]
[420878296,1776694276116,-150.0,0.000165,2]
[420878297,1776694276126,-2419.69,0.000165,2]
[420878298,1776694276137,-150.35878817,0.000165,2]
[420878299,1776694276147,-150.0,0.000165,2]
[420878300,1776694276156,-3388.0,0.000165,2]
[420878301,1776694276166,-262.86543985,0.000165,2]
[420878302,1776694276175,-617.74059009,0.000165,2]
[420878303,1776694276185,-205.91353,0.000165,2]
[420878304,1776694276194,-1005.38,0.000165,2]
[420878305,1776694276204,-5001.26,0.000165,5]
[420878306,1776694276214,-311.17561746,0.000165,2]
[420878307,1776694276224,-155.58780873,0.000165,2]
[420878308,1776694276234,-411.32441645,0.000165,2]
[420878309,1776694276244,-205.66220819,0.000165,2]
[420878310,1776694276255,-2000.0,0.000165,2]